bitfinex-derivatives/quotes_SOLF0:USTF0_20241103
["timestamp","ask_amount","ask_price","bid_price","bid_amount"]
[1730639547510,3.0655,163.17,163.14,3.0658]
[1730639547820,2.9,163.19,163.1,2.712]
[1730639548019,2.9,163.19,163.13,3.066]
[1730639548924,3.0658,163.15,163.11,3.0663]
[1730639549117,2.9,163.19,163.11,3.0663]
[1730639549417,3.0659,163.15,162.94,2.83880297]
[1730639549615,3.0659,163.15,163.08,3.0669]
[1730639549616,2.9,163.15,163.08,3.0669]
[1730639549935,3.0661,163.13,163.03,2.5769]
[1730639550119,5.5615,163.18,163.11,3.0663]
[1730639550317,24.5184,163.24,163.08,2.9]
[1730639550625,24.5184,163.24,163.09,6.748]
[1730639550626,3.0656,163.16,163.09,6.748]
[1730639551111,2.9,163.19,163.01,41.67791321]
[1730639551112,3.0664,163.12,163.03,2.9]
[1730639551311,3.0664,163.12,163.04,2.587]
[1730639551922,3.0664,163.12,163.08,3.0669]
[1730639552221,2.9,163.15,163.04,2.587]
[1730639552817,3.0666,163.11,163.07,3.0672]
[1730639554026,3.0666,163.11,163.08,3.067]
[1730639554240,3.0666,163.11,163.04,2.587]
[1730639554524,2.9,163.15,163.07,3.0671]
[1730639555026,3.0666,163.11,163.07,3.0671]
[1730639557023,3.0661,163.13,163.07,3.0671]
[1730639557226,2.9,163.15,163.07,3.0671]
[1730639557731,3.0666,163.11,163.07,3.0671]
[1730639558026,2.9,163.15,163.07,3.0671]
[1730639558629,3.0666,163.11,163.07,3.0671]
[1730639559129,2.9,163.15,163.07,3.0671]
[1730639559728,3.0668,163.09,163.06,3.0673]
[1730639561329,3.0668,163.09,163.07,3.0672]
[1730639561737,3.0668,163.09,163.04,2.587]
[1730639562229,3.0668,163.09,163.06,3.0673]
[1730639563835,1.3883,163.14,163.04,2.587]
[1730639564133,2.6493,163.14,163.04,1.3159]
[1730639564829,3.0671,163.08,163.05,3.0675]
[1730639566827,3.0671,163.08,163.02,4.161]
[1730639566828,3.0677,163.05,163.02,3.0681]
[1730639568725,3.0671,163.08,163.02,3.0681]
[1730639568932,2.9,163.11,163.02,3.0681]
[1730639569129,2.9,163.11,162.99,5.93071026]
[1730639570336,3.0675,163.06,162.99,5.93071026]
[1730639571135,2.9,163.11,162.99,5.93071026]
[1730639571330,3.0676,163.05,162.99,5.93071026]
[1730639571726,3.0676,163.05,162.99,3.03071026]
[1730639571928,3.0676,163.05,162.99,2.9]
[1730639572129,3.0676,163.05,162.99,3.10661506]
[1730639572330,3.0676,163.05,162.99,2.9]
[1730639572529,3.0675,163.06,162.99,5.99863837]
[1730639572730,3.0675,163.06,162.99,2.9]
[1730639572931,2.9,163.11,162.99,2.9]
[1730639573130,3.0671,163.08,163.02,3.068]
[1730639573336,2.9,163.11,163.02,3.068]
[1730639573947,2.9,163.11,163.01,3.0683]
[1730639574447,3.0679,163.03,163.01,3.0683]
[1730639575841,3.0679,163.04,163.01,3.0683]
[1730639576533,78.44750501,163.12,162.97,5.75860396]
[1730639576534,3.068,163.03,163.0,3.0684]
[1730639577240,2.9,163.07,162.99,3.0685]
[1730639577745,18.39,163.06,162.92,3.0699]
[1730639577942,21.0528,163.06,162.92,3.0699]
[1730639578440,18.39,163.04,162.89,1.2955]
[1730639578641,2.9,163.03,162.89,1.2955]
[1730639578840,2.9,163.03,162.85,2.5647]
[1730639579048,2.9,163.03,162.85,6.7602]
[1730639579837,3.0701,162.92,162.88,3.0707]
[1730639580042,2.9,162.95,162.85,6.7602]
[1730639580343,2.92,163.0,162.85,6.7602]
[1730639580528,3.0692,162.97,162.93,3.0698]
[1730639580734,2.6628,163.06,162.89,2.92]
[1730639581043,3.0682,163.02,162.98,3.0687]
[1730639581345,2.92,163.05,162.93,2.92]
[1730639581538,3.068,163.03,162.99,3.0687]
[1730639582238,3.0681,163.02,162.99,3.0687]
[1730639582645,3.0681,163.02,162.98,3.0689]
[1730639583342,3.0682,163.02,162.94,6.8437]
[1730639584250,3.0682,163.02,162.98,3.0689]
[1730639585043,3.0682,163.02,162.94,6.8437]
[1730639585244,2.92,163.05,162.94,6.8437]
[1730639585638,3.0683,163.02,162.98,3.0689]
[1730639585946,2.92,163.05,162.98,3.0689]
[1730639586143,3.0683,163.02,162.98,3.0689]
[1730639587855,3.0683,163.01,162.98,3.0689]
[1730639588750,2.92,163.05,162.94,6.8437]
[1730639589053,2.92,163.05,162.94,3.9237]
[1730639589446,3.069,162.98,162.95,3.0694]
[1730639591349,1.3942,163.06,162.94,3.9237]
[1730639591557,2.92,163.05,162.94,3.9237]
[1730639591943,3.0682,163.02,162.98,3.0687]
[1730639592354,2.92,163.04,162.94,3.9237]
[1730639592653,3.0684,163.01,162.98,3.0688]
[1730639594251,3.0681,163.03,163.0,3.0685]
[1730639594452,2.92,163.06,162.95,2.92]
[1730639594949,3.068,163.03,163.0,3.0684]
[1730639595851,2.92,163.06,162.95,2.92]
[1730639596949,3.0681,163.03,163.0,3.0683]
[1730639597142,2.92,163.07,162.95,2.92]
[1730639597755,3.0681,163.03,162.99,3.0686]
[1730639598258,3.0681,163.03,163.0,3.0685]
[1730639598554,3.0673,163.07,162.95,2.92]
[1730639598746,2.92,163.07,162.95,2.92]
[1730639598946,2.92,163.11,162.95,2.92]
[1730639599759,2.92,163.11,162.96,1.12726345]
[1730639600349,3.067,163.08,163.05,3.0675]
[1730639600550,2.92,163.11,163.02,2.96]
[1730639600763,2.92,163.11,162.99,2.96]
[1730639600960,4.2345,163.11,162.99,2.96]
[1730639601742,3.0679,163.04,163.01,3.0683]
[1730639604952,2.96,163.07,163.0,1.32]
[1730639605153,3.0681,163.03,163.0,4.3885]
[1730639605347,2.96,163.07,163.0,1.32]
[1730639606160,2.96,163.07,162.94,5.531]
[1730639607052,3.0682,163.02,162.99,3.0686]
[1730639607853,2.96,163.07,162.99,3.0686]
[1730639608067,3.0686,163.0,162.97,3.069]
[1730639608363,2.96,163.03,162.94,2.571]
[1730639608661,3.0689,162.98,162.95,3.0694]
[1730639609064,2.96,163.02,162.94,2.571]
[1730639610269,3.0688,162.99,162.96,3.0692]
[1730639610668,2.96,163.02,162.94,2.571]
[1730639610861,3.0691,162.97,162.94,4.3832]
[1730639611564,3.0689,162.98,162.95,3.0694]
[1730639614257,3.0686,163.0,162.96,3.0691]
[1730639615165,3.0686,163.0,162.94,1.3137]
[1730639615670,2.96,163.04,162.95,2.96]
[1730639615871,2.96,163.04,162.98,3.0687]
[1730639616169,3.0682,163.02,162.96,1.3049]
[1730639616764,3.0688,162.99,162.95,2.96]
[1730639617167,2.96,163.03,162.95,6.0294]
[1730639617476,3.0692,162.97,162.94,1.3137]
[1730639618066,3.0689,162.98,162.94,1.3137]
[1730639618560,3.0689,162.98,162.95,3.0693]
[1730639621481,1.2996,163.1,162.91,3.07]
[1730639621482,3.0698,162.94,162.91,3.07]
[1730639623374,2.96,162.98,162.88,1.2736]
[1730639623675,3.0693,162.96,162.93,3.0698]
[1730639627476,1.3711,163.02,162.89,2.6611]
[1730639627477,3.0691,162.97,162.94,3.0695]
[1730639627880,2.96,163.0,162.91,5.99073368]
[1730639628076,3.0691,162.98,162.91,5.99073368]
[1730639628679,18.39,163.11,162.91,5.99073368]
[1730639628882,18.39,163.09,162.91,5.99073368]
[1730639629084,18.39,163.09,162.98,3.0688]
[1730639629785,3.0674,163.06,162.98,3.0688]
[1730639630093,2.96,163.05,162.98,3.0688]
[1730639630394,2.96,163.05,162.96,1.3597]
[1730639630698,2.96,163.05,162.96,4.4288]
[1730639631186,2.96,163.05,162.96,1.3597]
[1730639631579,3.069,162.98,162.96,1.3597]
[1730639632084,2.96,163.01,162.94,3.0695]
[1730639632784,2.96,163.01,162.9,1.2664]
[1730639632994,2.96,163.01,162.91,3.0701]
[1730639633378,3.0689,162.98,162.92,3.07]
[1730639633592,2.96,163.01,162.92,3.07]
[1730639635687,2.96,163.0,162.9,1.2664]
[1730639635897,2.96,163.01,162.94,3.0695]
[1730639636090,2.96,163.01,162.9,1.2664]
[1730639636396,3.0692,162.97,162.93,3.0698]
[1730639637702,3.0694,162.96,162.93,3.0698]
[1730639638793,2.96,163.01,162.91,2.96]
[1730639638990,2.96,163.01,162.94,3.0695]
[1730639639289,2.96,163.02,162.94,3.0695]
[1730639640384,3.0692,162.97,162.94,3.0695]
[1730639647902,3.0686,163.0,162.94,3.0695]
[1730639648108,2.96,163.02,162.94,3.0695]
[1730639648608,2.96,163.02,162.91,6.09000463]
[1730639648609,3.0688,162.99,162.96,3.0692]
[1730639649900,3.0689,162.98,162.96,3.0692]
[1730639650712,2.96,163.02,162.91,6.09000463]
[1730639651007,3.0692,162.97,162.91,6.09000463]
[1730639651203,2.96,163.02,162.9,1.2664]
[1730639651403,3.0698,162.94,162.91,3.0702]
[1730639652192,2.96,162.98,162.9,1.2664]
[1730639653005,2.96,162.98,162.91,3.0701]
[1730639653006,3.0697,162.94,162.91,3.0701]
[1730639653505,2.96,162.98,162.9,4.3366]
[1730639653506,3.0693,162.96,162.9,4.3366]
[1730639653709,2.96,162.98,162.9,1.2664]
[1730639654013,3.0697,162.94,162.91,3.0702]
[1730639657209,3.0692,162.97,162.92,3.0699]
[1730639657415,2.96,162.98,162.91,3.0734071]
[1730639657912,3.0694,162.96,162.93,3.0697]
[1730639663114,2.96,162.98,162.9,1.2664]
[1730639663309,2.96,162.98,162.9,4.3367]
[1730639664323,3.07,162.92,162.9,4.3367]
[1730639665309,3.0699,162.93,162.9,4.3367]
[1730639666314,3.0696,162.95,162.92,3.07]
[1730639666502,3.0696,162.95,162.9,1.2664]
[1730639666703,3.0696,162.95,162.91,3.0701]
[1730639666903,3.0696,162.95,162.9,1.2664]
[1730639667820,3.0696,162.95,162.92,3.0699]
[1730639668412,3.07,162.93,162.9,4.3368]
[1730639669722,2.96,162.98,162.77,44.18]
[1730639669924,2.7183,162.97,162.83,6.9469]
[1730639670216,2.92,162.96,162.83,10.06316727]
[1730639670428,3.0702,162.91,162.88,3.0706]
[1730639672836,2.92,162.96,162.85,2.92]
[1730639673030,3.0705,162.9,162.85,2.92]
[1730639673524,3.0705,162.9,162.87,3.071]
[1730639674522,3.0706,162.89,162.87,3.071]
[1730639675627,3.0707,162.89,162.86,3.0711]
[1730639676138,2.92,162.96,162.85,2.92]
[1730639676333,3.0706,162.89,162.85,2.92]
[1730639676823,3.0705,162.9,162.87,3.0709]
[1730639677223,2.92,162.96,162.83,7.14316727]
[1730639677426,2.92,162.96,162.86,3.071]
[1730639678131,3.0706,162.9,162.86,3.071]
[1730639679730,3.0706,162.9,162.87,3.0709]
[1730639680428,3.071,162.87,162.85,3.0713]
[1730639680732,2.92,162.91,162.83,3.11626727]
[1730639680917,2.92,162.92,162.79,2.92]
[1730639681121,3.0707,162.89,162.86,3.0711]
[1730639681519,2.92,162.92,162.87,3.0709]
[1730639682226,3.0705,162.9,162.87,3.0709]
[1730639682531,2.92,162.92,162.84,1.373]
[1730639684622,3.0707,162.89,162.86,3.0711]
[1730639685224,2.92,162.92,162.86,3.0711]
[1730639685225,3.0705,162.9,162.86,3.0711]
[1730639685426,2.92,162.92,162.86,3.0711]
[1730639685936,3.0707,162.89,162.86,3.0711]
[1730639687618,3.0708,162.88,162.86,3.0711]
[1730639687822,2.92,162.92,162.86,3.0711]
[1730639688026,2.92,162.92,162.84,1.373]
[1730639688228,3.0702,162.92,162.84,1.373]
[1730639688426,3.0702,162.92,162.85,2.637]
[1730639688626,3.0702,162.92,162.89,3.0705]
[1730639689231,60.11603103,162.97,162.88,2.92]
[1730639689831,63.18523103,162.97,162.88,2.92]
[1730639690231,63.18523103,162.97,162.93,3.0697]
[1730639690438,63.18523103,162.97,162.88,2.92]
[1730639691141,63.18523103,162.97,162.93,3.0697]
[1730639691941,2.92,163.0,162.88,2.92]
[1730639692238,2.92,163.02,162.89,2.92]
[1730639692435,3.0687,162.99,162.95,3.0693]
[1730639693038,3.0687,162.99,162.93,5.97867096]
[1730639694027,2.92,163.03,162.93,5.97867096]
[1730639694430,1.3735,163.05,162.93,5.97867096]
[1730639694629,4.2935,163.05,162.93,5.97867096]
[1730639694845,3.0681,163.02,162.98,3.0688]
[1730639695435,3.068,163.03,163.0,3.0685]
[1730639696343,3.068,163.03,162.97,2.92]
[1730639696344,3.068,163.03,162.99,3.0686]
[1730639696944,60.07926934,163.08,162.97,2.92]
[1730639697150,2.92,163.07,162.98,4.0395]
[1730639697552,3.0675,163.06,163.02,3.068]
[1730639698442,2.92,163.07,162.98,4.0395]
[1730639698443,3.0677,163.05,163.0,3.0683]
[1730639698746,3.0677,163.05,162.98,4.0395]
[1730639698942,3.0677,163.05,163.01,3.0682]
[1730639700347,3.0673,163.07,162.98,4.0395]
[1730639700556,24.519,163.22,162.98,4.0395]
[1730639700739,1.2686,163.19,162.98,4.0395]
[1730639700940,3.0663,163.12,163.08,3.0669]
[1730639701343,2.92,163.15,163.05,2.92]
[1730639701547,2.92,163.15,163.08,3.067]
[1730639701747,2.92,163.15,163.06,1.3037]
[1730639701949,2.92,163.15,163.05,3.0674]
[1730639701950,3.067,163.09,163.05,3.0674]
[1730639702239,2.92,163.11,163.02,2.92]
[1730639702952,3.0669,163.09,163.02,5.988]
[1730639703149,2.92,163.11,163.02,5.988]
[1730639703349,2.92,163.11,162.99,5.6137]
[1730639704254,3.0679,163.04,162.99,5.6137]
[1730639704446,2.92,163.11,162.99,5.6137]
[1730639704641,3.0681,163.03,162.99,8.6823]
[1730639705038,3.0681,163.03,162.99,5.7623]
[1730639705850,2.92,163.06,162.97,3.069]
[1730639706553,3.0684,163.01,162.97,3.069]
[1730639708652,2.92,163.06,162.95,2.92]
[1730639708859,3.0681,163.03,162.99,3.0685]
[1730639709156,3.0681,163.03,162.96,4.116]
[1730639709548,3.0681,163.03,162.98,3.0689]
[1730639709750,3.0681,163.03,162.96,4.116]
[1730639709950,2.92,163.07,162.96,4.116]
[1730639710152,3.068,163.03,162.99,3.0685]
[1730639712053,3.068,163.03,163.0,3.0685]
[1730639713862,2.92,163.07,162.96,4.116]
[1730639714249,2.5626,163.06,162.96,2.7584]
[1730639714745,3.0685,163.01,162.97,3.0689]
[1730639715355,3.0686,163.0,162.97,3.0689]
[1730639715754,2.5626,163.06,162.96,1.3806]
[1730639715961,2.92,163.03,162.92,2.92]
[1730639716352,3.0688,162.99,162.96,3.0692]
[1730639718361,3.0687,162.99,162.96,3.0692]
[1730639719452,2.92,163.03,162.92,6.04052844]
[1730639719656,3.0685,163.0,162.97,3.069]
[1730639721355,2.92,163.03,162.92,2.92]
[1730639721660,2.92,163.03,162.9,2.7199]
[1730639722357,2.92,163.03,162.91,3.0701]
[1730639722557,2.92,163.03,162.9,2.7199]
[1730639723768,2.92,163.03,162.92,3.0699]
[1730639723769,3.0695,162.95,162.92,3.0699]
[1730639724456,3.0698,162.94,162.9,5.7903]
[1730639724667,2.92,162.99,162.9,5.7903]
[1730639725663,3.0698,162.94,162.9,5.7903]
[1730639726873,3.0699,162.93,162.9,3.0704]
[1730639728066,2.7441,162.98,162.86,2.92]
[1730639728271,3.07,162.92,162.89,3.0705]
[1730639728769,2.7441,162.98,162.89,3.0705]
[1730639728968,3.0702,162.91,162.89,3.0705]
[1730639729162,2.92,162.95,162.86,2.92]
[1730639729359,2.92,162.95,162.9,3.0704]
[1730639730260,3.0699,162.93,162.9,3.0704]
[1730639735071,3.07,162.92,162.89,3.0705]
[1730639735971,3.07,162.92,162.9,3.0704]
[1730639736366,3.0699,162.93,162.9,3.0704]
[1730639736568,2.92,162.97,162.91,3.0701]
[1730639736866,3.0698,162.94,162.91,3.0701]
[1730639737271,2.92,162.97,162.9,3.0703]
[1730639737469,2.92,162.97,162.86,2.92]
[1730639738175,3.07,162.93,162.89,3.0704]
[1730639738968,3.07,162.93,162.86,2.92]
[1730639739363,2.92,162.97,162.84,4.0653]
[1730639739561,2.92,162.97,162.84,6.9853]
[1730639739766,2.5648,162.96,162.87,3.0708]
[1730639740371,3.0698,162.94,162.87,3.0708]
[1730639740576,2.5648,162.96,162.87,3.0708]
[1730639740577,2.92,162.93,162.87,3.0708]
[1730639740975,3.0703,162.91,162.88,3.0708]
[1730639742767,3.0706,162.89,162.86,3.0711]
[1730639742969,3.0706,162.89,162.84,5.6445]
[1730639743373,3.0706,162.89,162.86,3.071]
[1730639743776,2.92,162.93,162.84,5.6445]
[1730639743974,3.0705,162.9,162.87,3.071]
[1730639745388,3.07,162.93,162.84,5.6445]
[1730639746271,2.92,162.95,162.84,5.6445]
[1730639746474,60.11610633,162.97,162.92,3.0699]
[1730639746772,60.11610633,162.97,162.91,2.99715355]
[1730639746974,2.92,163.02,162.92,6.864]
[1730639747374,3.0685,163.01,162.97,3.0689]
[1730639747573,3.0685,163.01,162.92,6.864]
[1730639747772,2.92,163.04,162.92,6.864]
[1730639747977,3.0681,163.02,162.92,9.94775164]
[1730639748787,3.0681,163.02,162.98,3.0688]
[1730639749084,3.0686,163.0,162.92,9.94775164]
[1730639749779,63.00711174,163.05,162.92,9.94775164]
[1730639749780,63.00711174,163.05,162.95,3.0693]
[1730639750176,63.00711174,163.05,162.92,6.864]
[1730639750177,81.43711174,163.05,162.92,6.864]
[1730639750383,3.0691,162.97,162.93,3.0698]
[1730639750681,2.92,163.01,162.92,1.2682]
[1730639750881,3.0696,162.95,162.92,1.2682]
[1730639751179,2.92,163.0,162.92,1.2682]
[1730639751377,2.92,163.0,162.9,2.92]
[1730639751378,3.0698,162.94,162.9,5.9904]
[1730639754686,3.0698,162.94,162.9,3.0704]
[1730639755484,2.92,163.0,162.87,2.92]
[1730639755874,2.725,162.99,162.87,2.92]
[1730639756079,3.0699,162.93,162.89,3.0704]
[1730639756284,2.92,162.96,162.86,1.2874]
[1730639756486,2.92,162.96,162.86,4.2074]
[1730639756686,3.0697,162.94,162.91,3.0701]
[1730639756880,3.0697,162.94,162.86,4.2074]
[1730639757177,2.92,162.96,162.86,4.2074]
[1730639757382,3.0697,162.94,162.91,3.0702]
[1730639761197,3.0698,162.93,162.9,3.0704]
[1730639761404,3.0698,162.93,162.9,3.03130721]
[1730639762186,2.92,162.96,162.86,4.2074]
[1730639762386,63.00711174,163.05,162.86,4.2074]
[1730639762589,63.00711174,163.05,162.87,1.12796058]
[1730639762794,3.0686,163.0,162.87,1.12796058]
[1730639763182,3.0686,163.0,162.96,3.0692]
[1730639763398,63.00711174,163.05,162.96,3.0692]
[1730639763694,3.0681,163.03,162.96,3.0692]
[1730639763896,63.00711174,163.05,162.96,3.0692]
[1730639764091,2.92,163.04,162.94,1.2648]
[1730639764300,3.0691,162.97,162.94,4.3344]
[1730639764688,2.92,163.0,162.85,1.3876]
[1730639764881,3.0695,162.95,162.86,4.2064]
[1730639765088,2.92,163.0,162.86,4.2064]
[1730639765489,2.7102,162.99,162.86,4.2064]
[1730639765692,2.7102,162.99,162.86,1.2864]
[1730639766088,3.0704,162.9,162.86,4.3574]
[1730639766498,2.92,162.94,162.86,4.3574]
[1730639766695,3.0708,162.88,162.83,4.1855]
[1730639767002,3.0708,162.88,162.83,1.2655]
[1730639768395,3.0708,162.88,162.85,3.0713]
[1730639768591,3.0708,162.88,162.83,1.2655]
[1730639768891,2.92,162.94,162.83,1.2655]
[1730639769395,1.3854,162.93,162.8,2.6483]
[1730639769594,3.0716,162.84,162.8,2.6483]
[1730639769790,2.92,162.88,162.8,2.6483]
[1730639771096,3.0714,162.85,162.81,3.072]
[1730639772200,3.0714,162.85,162.8,2.6483]
[1730639772501,6.1376,162.99,162.8,2.6483]
[1730639772696,2.92,163.0,162.8,2.6483]
[1730639772896,2.92,162.99,162.81,1.12835632]
[1730639773093,3.0693,162.96,162.92,3.0699]
[1730639773599,2.92,162.99,162.87,2.92]
[1730639773796,2.92,162.99,162.88,1.2727]
[1730639774297,2.92,163.02,162.88,1.2727]
[1730639776305,2.92,163.02,162.89,2.92]
[1730639777413,3.0696,162.95,162.9,3.0703]
[1730639778720,3.0695,162.95,162.9,3.0703]
[1730639779909,3.0696,162.95,162.9,3.0703]
[1730639780409,3.0695,162.95,162.9,3.0703]
[1730639780600,2.92,162.97,162.89,5.9905]
[1730639780813,1.2803,162.96,162.84,1.3532]
[1730639781104,3.07,162.93,162.85,2.92]
[1730639781303,3.07,162.93,162.88,3.0706]
[1730639781512,2.6771,162.96,162.88,3.0706]
[1730639781813,3.0701,162.92,162.88,3.0706]
[1730639782012,2.6771,162.96,162.87,3.0709]
[1730639782195,3.0703,162.91,162.87,3.0709]
[1730639782401,3.02,162.93,162.85,1.3294]
[1730639782912,3.0705,162.9,162.85,1.3294]
[1730639783904,3.0708,162.89,162.85,4.4006]
[1730639784709,3.0709,162.88,162.85,4.4006]
[1730639784909,3.02,162.93,162.83,3.0716]
[1730639785215,3.02,162.93,162.8,3.02]
[1730639786607,3.0706,162.89,162.86,3.0711]
[1730639787517,3.0708,162.88,162.8,3.02]
[1730639788817,3.0708,162.88,162.85,3.0713]
[1730639789119,3.02,162.93,162.76,3.9294]
[1730639789311,3.0714,162.85,162.82,3.0718]
[1730639789511,3.02,162.89,162.77,3.02]
[1730639789707,3.0715,162.85,162.77,3.02]
[1730639789910,3.0715,162.85,162.81,3.072]
[1730639790114,3.0715,162.85,162.77,3.02]
[1730639791312,3.0715,162.85,162.82,3.0718]
[1730639791616,3.0715,162.85,162.76,3.9294]
[1730639791918,3.0707,162.89,162.77,3.02]
[1730639792118,3.0707,162.89,162.78,1.12852369]
[1730639792315,3.0707,162.89,162.85,3.0712]
[1730639792913,3.0707,162.89,162.82,3.02]
[1730639793116,3.0707,162.89,162.85,3.0712]
[1730639793418,3.0711,162.87,162.83,1.343]
[1730639793623,3.02,162.93,162.83,4.4146]
[1730639793918,3.0711,162.87,162.83,4.4146]
[1730639794118,3.02,162.93,162.83,4.4146]
[1730639794311,3.02,162.93,162.83,3.0716]
[1730639794918,3.0713,162.86,162.83,3.0716]
[1730639800423,3.02,162.89,162.8,3.02]
[1730639801025,3.0711,162.87,162.83,3.0716]
[1730639802728,3.0711,162.87,162.8,3.02]
[1730639802729,3.0715,162.85,162.82,3.0719]
[1730639802923,3.02,162.89,162.8,3.02]
[1730639803527,3.0712,162.86,162.83,3.0716]
[1730639803832,3.02,162.89,162.8,3.02]
[1730639804934,3.0711,162.87,162.83,3.0716]
[1730639806639,3.0715,162.84,162.81,3.072]
[1730639806827,3.0715,162.84,162.8,3.02]
[1730639806828,3.02,162.89,162.8,3.02]
[1730639807424,3.0714,162.85,162.82,3.0718]
[1730639808036,3.02,162.89,162.79,3.02]
[1730639808430,3.0711,162.87,162.84,3.0714]
[1730639809035,3.0716,162.84,162.79,3.02]
[1730639809242,3.02,162.89,162.79,3.02]
[1730639809628,3.0715,162.85,162.82,3.0718]
[1730639809827,3.02,162.89,162.79,3.02]
[1730639810430,3.02,162.89,162.77,1.343]
[1730639810734,3.02,162.89,162.78,3.02]
[1730639811138,3.02,162.89,162.81,3.072]
[1730639811139,3.0715,162.85,162.81,3.072]
[1730639812125,3.02,162.89,162.78,3.02]
[1730639813736,3.0716,162.84,162.78,3.02]
[1730639813938,3.02,162.89,162.78,3.02]
[1730639815234,3.0714,162.85,162.82,3.0719]
[1730639815438,3.02,162.89,162.78,3.02]
[1730639816332,1.2803,162.96,162.78,3.02]
[1730639816543,19.7301,163.02,162.79,1.12848301]
[1730639816730,3.02,163.01,162.79,1.12848301]
[1730639816940,3.0697,162.94,162.9,3.0703]
[1730639817237,3.02,163.01,162.79,7.27328301]
[1730639817238,3.02,163.01,162.88,3.02]
[1730639817438,3.02,162.97,162.88,3.02]
[1730639817636,1.326,162.96,162.79,6.1448]
[1730639817838,1.326,162.96,162.8,3.02]
[1730639818540,3.0703,162.91,162.87,3.0708]
[1730639818740,1.326,162.96,162.87,3.0708]
[1730639819845,3.0703,162.91,162.87,3.0708]
[1730639821044,3.0703,162.91,162.85,3.02]
[1730639821246,3.0702,162.92,162.88,3.0706]
[1730639822338,3.0705,162.9,162.86,1.3504]
[1730639822738,3.02,162.93,162.86,1.3504]
[1730639822938,3.0707,162.89,162.86,1.3504]
[1730639823354,3.02,162.93,162.74,6.1469]
[1730639823651,3.02,162.93,162.85,3.0713]
[1730639824150,3.0707,162.89,162.85,3.0713]
[1730639824947,3.02,162.93,162.83,1.3158]
[1730639825152,3.02,162.93,162.84,2.7291]
[1730639825346,3.0702,162.91,162.86,3.071]
[1730639825556,3.0702,162.91,162.84,2.7291]
[1730639825852,3.0702,162.91,162.86,3.0711]
[1730639826047,3.0702,162.91,162.84,2.7291]
[1730639826246,3.0702,162.91,162.84,5.82943425]
[1730639826446,3.0702,162.91,162.88,3.0707]
[1730639827247,3.02,162.93,162.84,2.7291]
[1730639827551,3.02,162.93,162.85,3.0712]
[1730639827747,3.02,162.93,162.84,2.7291]
[1730639827948,3.02,162.93,162.87,3.0709]
[1730639828754,3.02,162.93,162.84,2.7291]
[1730639828947,3.02,162.93,162.87,3.0709]
[1730639829150,3.02,162.93,162.84,2.7291]
[1730639829457,3.0707,162.89,162.86,3.0711]
[1730639830749,3.0708,162.88,162.85,3.0712]
[1730639831153,3.0708,162.88,162.84,2.7291]
[1730639831453,3.0708,162.88,162.85,3.0713]
[1730639831850,3.02,162.93,162.83,4.3358]
[1730639832055,3.02,162.93,162.76,2.5911]